fUST/lending_fUST_20241117
["ID","MTS","AMOUNT","RATE_DAILY","PERIOD"]
[342420442,1731843035174,-151.0,0.00021917,2]
[342420443,1731843035183,-500.0,0.00021917,2]
[342420444,1731843035193,-151.0,0.00021917,2]
[342420445,1731843035203,-500.0,0.00021917,2]
[342420446,1731843035212,-151.0,0.00021917,2]
[342420447,1731843035222,-176.479786,0.00021917,2]
[342420448,1731843035232,-500.0,0.00021917,2]
[342420449,1731843035243,-500.0,0.00021917,2]
[342420450,1731843035252,-500.0,0.00021917,2]
[342420451,1731843035262,-500.0,0.00021917,2]
[342420452,1731843035272,-596.88,0.00021917,2]
[342420453,1731843035281,-500.0,0.00021917,2]
[342420454,1731843035291,-500.0,0.00021917,2]
[342420455,1731843035300,-1509.79,0.00021917,2]
[342420456,1731843035309,-500.0,0.00021917,2]
[342420457,1731843035319,-500.0,0.00021917,2]
[342420458,1731843035329,-1279.94,0.00021917,2]
[342420459,1731843035338,-500.0,0.00021917,2]
[342420460,1731843035348,-500.0,0.00021917,2]
[342420461,1731843035357,-500.0,0.00021917,2]
[342420462,1731843035367,-500.0,0.00021917,2]
[342420463,1731843035376,-1967.84,0.00021917,2]
[342420464,1731843035386,-500.0,0.00021917,2]
[342420465,1731843035396,-500.0,0.00021917,2]
[342420466,1731843035405,-500.0,0.00021917,2]
[342420467,1731843035414,-739.07,0.00021917,2]
[342420468,1731843035424,-500.0,0.00021917,2]
[342420469,1731843035433,-500.0,0.00021917,2]
[342420470,1731843035444,-500.0,0.00021917,2]
[342420471,1731843035454,-500.0,0.00021917,2]
[342420472,1731843035463,-500.0,0.00021917,2]
[342420473,1731843035473,-500.0,0.00021917,2]
[342420474,1731843035483,-500.0,0.00021917,2]
[342420475,1731843035493,-500.0,0.00021917,2]
[342420476,1731843035503,-607.46,0.00021917,2]
[342420477,1731843035512,-500.0,0.00021917,2]
[342420478,1731843035521,-500.0,0.00021917,2]
[342420479,1731843035531,-500.0,0.00021917,2]
[342420480,1731843035540,-500.0,0.00021917,2]
[342420481,1731843035549,-500.0,0.00021917,2]
[342420482,1731843035558,-500.0,0.00021917,2]
[342420483,1731843035567,-506.97514376,0.00021917,2]
[342420484,1731843035577,-500.0,0.00021917,2]
[342420485,1731843035589,-534.32,0.00021917,2]
[342420486,1731843035598,-2765.11,0.00021917,2]
[342420487,1731843035607,-1333.16,0.00021917,2]
[342420488,1731843035618,-500.0,0.00021917,2]
[342420489,1731843035627,-500.0,0.00021917,2]
[342420490,1731843035636,-500.0,0.00021917,2]
[342420491,1731843035645,-500.0,0.00021917,2]
[342420492,1731843035656,-500.0,0.00021917,2]
[342420493,1731843035665,-85.41032566,0.00021917,2]
[342420516,1731843038321,-261.08824052,0.00021817,2]
[342420517,1731843038331,-113435.29439083,0.00021817,2]
[342420518,1731843038340,-425.05983254,0.00021917,2]
[342420519,1731843038350,-602.23,0.00021917,2]
[342420520,1731843038360,-500.0,0.00021917,2]
[342420521,1731843038370,-500.0,0.00021917,2]
[342420522,1731843038380,-500.0,0.00021917,2]
[342420523,1731843038391,-151.0,0.00021917,2]
[342420524,1731843038401,-1412.46,0.00021917,2]
[342420525,1731843038414,-500.0,0.00021917,2]
[342420526,1731843038423,-500.0,0.00021917,2]
[342420527,1731843038433,-657.23,0.00021917,2]
[342420528,1731843038442,-862.13,0.00021917,2]
[342420529,1731843038451,-500.0,0.00021917,2]
[342420530,1731843038460,-500.0,0.00021917,2]
[342420531,1731843038470,-500.0,0.00021917,2]
[342420532,1731843038479,-500.0,0.00021917,2]
[342420534,1731843038488,-500.0,0.00021917,2]
[342420535,1731843038500,-500.0,0.00021917,2]
[342420536,1731843038509,-500.0,0.00021917,2]
[342420537,1731843038518,-502.56419857,0.00021917,2]
[342420538,1731843038527,-90.94333722,0.00021917,2]
[342420567,1731843043633,-409.05666278,0.00021917,2]
[342420569,1731843043643,-500.0,0.00021917,2]
[342420570,1731843043652,-764.69,0.00021917,2]
[342420571,1731843043663,-500.0,0.00021917,2]
[342420572,1731843043672,-500.0,0.00021917,2]
[342420573,1731843043682,-500.0,0.00021917,2]
[342420574,1731843043691,-543.47252889,0.00021917,2]
[342420575,1731843043701,-596.71,0.00021917,2]
[342420576,1731843043710,-329.40617075,0.00021917,2]
[342420577,1731843043719,-500.0,0.00021917,2]
[342420578,1731843043728,-500.0,0.00021917,2]
[342420579,1731843043737,-529.48790342,0.00021917,2]
[342420580,1731843043746,-1000.0,0.00021917,5]
[342420581,1731843043756,-500.0,0.00021917,2]
[342420582,1731843043766,-500.0,0.00021917,2]
[342420583,1731843043775,-562.02,0.00021917,2]
[342420584,1731843043784,-500.0,0.00021917,2]
[342420585,1731843043794,-606.23,0.00021917,2]
[342420586,1731843043803,-500.0,0.00021917,2]
[342420587,1731843043812,-500.0,0.00021917,2]
[342420588,1731843043821,-500.0,0.00021917,2]
[342420589,1731843043831,-314.95021073,0.00021917,2]
[342420590,1731843043840,-500.0,0.00021917,2]
[342420591,1731843043849,-500.0,0.00021917,2]
[342420592,1731843043858,-500.0,0.00021917,2]
[342420593,1731843043867,-500.0,0.00021917,2]
[342420594,1731843043877,-1355.11,0.00021917,2]
[342420595,1731843043887,-500.0,0.00021917,2]
[342420596,1731843043896,-500.0,0.00021917,2]
[342420597,1731843043905,-500.0,0.00021917,2]
[342420598,1731843043914,-626.21,0.00021917,2]
[342420599,1731843043923,-500.0,0.00021917,2]
[342420600,1731843043932,-500.0,0.00021917,2]
[342420601,1731843043942,-500.0,0.00021917,2]
[342420602,1731843043950,-601.22,0.00021917,2]
[342420603,1731843043959,-500.0,0.00021917,2]
[342420604,1731843043968,-500.0,0.00021917,2]
[342420605,1731843043977,-500.0,0.00021917,2]
[342420606,1731843043986,-642.32,0.00021917,2]
[342420607,1731843043995,-500.0,0.00021917,2]
[342420608,1731843044007,-500.0,0.00021917,2]
[342420609,1731843044016,-500.0,0.00021917,2]
[342420610,1731843044026,-151.458845,0.00021917,2]
[342420611,1731843044035,-1136.72,0.00021917,2]
[342420612,1731843044043,-500.0,0.00021917,2]
[342420613,1731843044053,-500.0,0.00021917,2]
[342420614,1731843044062,-800.99,0.00021917,2]
[342420615,1731843044071,-580.24815987,0.00021917,2]
[342420616,1731843044080,-500.0,0.00021917,2]
[342420617,1731843044090,-500.0,0.00021917,2]
[342420618,1731843044316,-500.0,0.00021917,2]
[342420619,1731843044326,-500.0,0.00021917,2]
[342420620,1731843044335,-500.0,0.00021917,2]
[342420621,1731843044344,-500.0,0.00021917,2]
[342420622,1731843044355,-500.0,0.00021917,2]
[342420623,1731843044364,-500.0,0.00021917,2]
[342420624,1731843044374,-500.0,0.00021917,2]
[342420625,1731843044383,-500.0,0.00021917,2]
[342420626,1731843044394,-500.0,0.00021917,2]
[342420627,1731843044404,-500.0,0.00021917,2]
[342420628,1731843044414,-500.0,0.00021917,2]
[342420629,1731843044423,-520.30716386,0.00021917,2]
[342420630,1731843044433,-500.0,0.00021917,2]
[342420631,1731843044442,-500.0,0.00021917,2]
[342420632,1731843044451,-349.39235468,0.00021917,2]
[342420645,1731843046152,-150.60764532,0.00021917,2]
[342420646,1731843046162,-857.33,0.00021917,2]
[342420647,1731843046171,-500.0,0.00021917,2]
[342420648,1731843046180,-500.0,0.00021917,2]
[342420649,1731843046190,-274.28245548,0.00021917,2]
[342420650,1731843046200,-151.0,0.00021917,2]
[342420651,1731843046209,-151.0,0.00021917,2]
[342420652,1731843046219,-500.0,0.00021917,2]
[342420654,1731843046228,-151.0,0.00021917,2]
[342420656,1731843046237,-500.0,0.00021917,2]
[342420658,1731843046247,-500.0,0.00021917,2]
[342420659,1731843046258,-151.0,0.00021917,2]
[342420660,1731843046268,-500.0,0.00021917,2]
[342420661,1731843046278,-172.4409164,0.00021917,2]
[342420662,1731843046287,-509.18582916,0.00021917,2]
[342420663,1731843046297,-500.0,0.00021917,2]
[342420664,1731843046306,-500.0,0.00021917,2]
[342420665,1731843046316,-500.0,0.00021917,2]
[342420666,1731843046325,-500.0,0.00021917,2]
[342420667,1731843046335,-315.42029341,0.00021917,2]
[342420668,1731843046344,-500.0,0.00021917,2]
[342420669,1731843046354,-500.0,0.00021917,2]
[342420670,1731843046363,-500.0,0.00021917,2]
[342420671,1731843046372,-500.0,0.00021917,2]
[342420672,1731843046382,-500.0,0.00021917,2]
[342420673,1731843046391,-2862.71,0.00021917,2]
[342420674,1731843046400,-500.0,0.00021917,2]
[342420675,1731843046409,-500.0,0.00021917,2]
[342420676,1731843046418,-500.0,0.00021917,2]
[342420677,1731843046428,-500.0,0.00021917,2]
[342420678,1731843046437,-151.0,0.00021917,2]
[342420679,1731843046446,-500.0,0.00021917,2]
[342420680,1731843046455,-500.0,0.00021917,2]
[342420681,1731843046464,-151.0,0.00021917,2]
[342420682,1731843046474,-500.0,0.00021917,2]
[342420683,1731843046483,-151.0,0.00021917,2]
[342420684,1731843046493,-726.67,0.00021917,2]
[342420685,1731843046504,-558.13923757,0.00021917,2]
[342420686,1731843046514,-500.0,0.00021917,2]
[342420687,1731843046523,-866.74,0.00021917,2]
[342420688,1731843046532,-500.0,0.00021917,2]
[342420689,1731843046543,-1863.45,0.00021917,2]
[342420690,1731843046553,-609.52842355,0.00021917,2]
[342420691,1731843046564,-500.0,0.00021917,2]
[342420692,1731843046573,-500.0,0.00021917,2]
[342420693,1731843046585,-751.41,0.00021917,2]
[342420694,1731843046595,-500.0,0.00021917,2]
[342420695,1731843046603,-500.0,0.00021917,2]
[342420696,1731843046612,-1602.91,0.00021917,2]
[342420697,1731843046621,-910.48,0.00021917,2]
[342420698,1731843046631,-500.0,0.00021917,2]
[342420699,1731843046640,-500.0,0.00021917,2]
[342420700,1731843046650,-598.13,0.00021917,2]
[342420701,1731843046660,-500.0,0.00021917,2]
[342420702,1731843046670,-766.99,0.00021917,2]
[342420703,1731843046679,-584.25,0.00021917,2]
[342420704,1731843046689,-500.0,0.00021917,2]
[342420705,1731843046699,-918.39,0.00021917,2]
[342420706,1731843046708,-500.0,0.00021917,2]
[342420707,1731843046717,-324.8483789,0.00021917,2]
[342420708,1731843046726,-500.0,0.00021917,2]
[342420709,1731843046736,-500.0,0.00021917,2]
[342420710,1731843046745,-500.0,0.00021917,2]
[342420711,1731843046756,-500.0,0.00021917,2]
[342420712,1731843046766,-500.0,0.00021917,2]
[342420713,1731843046775,-500.0,0.00021917,2]
[342420714,1731843046784,-500.0,0.00021917,2]
[342420715,1731843046794,-500.0,0.00021917,2]
[342420716,1731843046803,-1812.73,0.00021917,2]
[342420717,1731843046812,-1703.25,0.00021917,2]
[342420718,1731843046822,-509.54815094,0.00021917,2]
[342420719,1731843046831,-500.0,0.00021917,2]
[342420720,1731843046841,-500.0,0.00021917,2]
[342420721,1731843046850,-547.07,0.00021917,2]
[342420722,1731843046859,-897.76,0.00021917,2]
[342420723,1731843046868,-500.0,0.00021917,2]
[342420724,1731843046877,-2052.12,0.00021917,2]
[342420725,1731843046887,-1514.26,0.00021917,2]
[342420726,1731843046897,-938.63,0.00021917,2]
[342420727,1731843046906,-1748.26,0.00021917,2]
[342420728,1731843046917,-934.0,0.00021917,2]
[342420729,1731843046927,-500.0,0.00021917,2]
[342420730,1731843046937,-500.0,0.00021917,2]
[342420731,1731843046947,-500.0,0.00021917,2]
[342420732,1731843046955,-500.0,0.00021917,2]
[342420733,1731843046965,-500.0,0.00021917,2]
[342420734,1731843046976,-635.03652639,0.00021917,2]
[342420735,1731843046985,-1654.83,0.00021917,2]
[342420736,1731843046996,-882.74,0.00021917,2]
[342420737,1731843047007,-845.28,0.00021917,2]
[342420738,1731843047016,-500.0,0.00021917,2]
[342420739,1731843047026,-500.0,0.00021917,2]
[342420740,1731843047035,-500.0,0.00021917,2]
[342420741,1731843047045,-780.96,0.00021917,2]
[342420742,1731843047058,-500.0,0.00021917,2]
[342420743,1731843047068,-659.16,0.00021917,2]
[342420744,1731843047078,-1291.28,0.00021917,2]
[342420745,1731843047088,-699.03,0.00021917,2]
[342420746,1731843047097,-500.74045719,0.00021917,2]
[342420747,1731843047108,-500.0,0.00021917,2]
[342420748,1731843047117,-2869.21,0.00021917,2]
[342420749,1731843047127,-500.0,0.00021917,2]
[342420750,1731843047138,-500.0,0.00021917,2]
[342420751,1731843047149,-2336.0,0.00021917,2]
[342420752,1731843047160,-521.35333648,0.00021917,2]
[342420753,1731843047170,-500.0,0.00021917,2]
[342420754,1731843047179,-500.0,0.00021917,2]
[342420755,1731843047188,-500.0,0.00021917,2]
[342420756,1731843047198,-500.0,0.00021917,2]
[342420757,1731843047208,-151.0,0.00021917,2]
[342420758,1731843047217,-500.0,0.00021917,2]
[342420759,1731843047226,-151.0,0.00021917,2]
[342420760,1731843047236,-500.0,0.00021917,2]
[342420761,1731843047245,-151.0,0.00021917,2]
[342420762,1731843047257,-151.0,0.00021917,2]
[342420763,1731843047266,-151.0,0.00021917,2]
[342420764,1731843047275,-615.79,0.00021917,2]
[342420765,1731843047285,-151.0,0.00021917,2]
[342420766,1731843047295,-500.0,0.00021917,2]
[342420767,1731843047305,-606.78,0.00021917,2]
[342420768,1731843047314,-500.0,0.00021917,2]
[342420769,1731843047324,-151.0,0.00021917,2]
[342420770,1731843047334,-151.0,0.00021917,2]
[342420771,1731843047343,-151.0,0.00021917,2]
[342420772,1731843047352,-151.0,0.00021917,2]
[342420773,1731843047362,-151.0,0.00021917,2]
[342420774,1731843047371,-151.0,0.00021917,2]
[342420775,1731843047380,-166.032332,0.00021917,2]
[342420776,1731843047390,-546.97902674,0.00021917,2]
[342420777,1731843047399,-500.0,0.00021917,2]
[342420778,1731843047408,-500.0,0.00021917,2]
[342420779,1731843047418,-500.0,0.00021917,2]
[342420780,1731843047427,-500.0,0.00021917,2]
[342420781,1731843047436,-500.0,0.00021917,2]
[342420782,1731843047445,-500.0,0.00021917,2]
[342420783,1731843047454,-152.647872,0.00021917,2]
[342420784,1731843047463,-500.0,0.00021917,2]
[342420785,1731843047473,-818.91,0.00021917,2]
[342420786,1731843047482,-500.0,0.00021917,2]
[342420787,1731843047492,-500.0,0.00021917,2]
[342420788,1731843047502,-500.0,0.00021917,2]
[342420789,1731843047518,-151.0,0.00021917,2]
[342420790,1731843047527,-151.0,0.00021917,2]
[342420791,1731843047536,-151.0,0.00021917,2]
[342420792,1731843047545,-151.0,0.00021917,2]
[342420793,1731843047554,-151.0,0.00021917,2]
[342420794,1731843047563,-151.0,0.00021917,2]
[342420795,1731843047573,-500.0,0.00021917,2]
[342420796,1731843047584,-500.0,0.00021917,2]
[342420797,1731843047595,-151.0,0.00021917,2]
[342420798,1731843047604,-151.0,0.00021917,2]
[342420799,1731843047614,-500.0,0.00021917,2]
[342420800,1731843047623,-161.107656,0.00021917,2]
[342420801,1731843047633,-500.0,0.00021917,2]
[342420802,1731843047642,-500.0,0.00021917,2]
[342420803,1731843047651,-1682.25,0.00021917,2]
[342420804,1731843047660,-1404.37,0.00021917,2]
[342420805,1731843047670,-563.88,0.00021917,2]
[342420806,1731843047680,-151.0,0.00021917,2]
[342420807,1731843047689,-151.0,0.00021917,2]
[342420808,1731843047698,-500.0,0.00021917,2]
[342420809,1731843047707,-151.0,0.00021917,2]
[342420810,1731843047716,-537.86321444,0.00021917,2]
[342420811,1731843047726,-151.0,0.00021917,2]
[342420812,1731843047735,-151.0,0.00021917,2]
[342420813,1731843047744,-274.682254,0.00021917,2]
[342420814,1731843047755,-151.0,0.00021917,2]
[342420815,1731843047764,-151.0,0.00021917,2]
[342420816,1731843047773,-151.0,0.00021917,2]
[342420817,1731843047782,-151.0,0.00021917,2]
[342420818,1731843047791,-500.0,0.00021917,2]
[342420819,1731843047800,-426.17654835,0.00021917,2]
[342420820,1731843047809,-857.3,0.00021917,2]
[342420821,1731843047818,-500.0,0.00021917,2]
[342420822,1731843047827,-957.97,0.00021917,2]
[342420823,1731843047836,-547.36,0.00021917,2]
[342420824,1731843047845,-500.0,0.00021917,2]
[342420825,1731843047855,-151.0,0.00021917,2]
[342420826,1731843047864,-151.0,0.00021917,2]
[342420827,1731843047875,-151.0,0.00021917,2]
[342420828,1731843047884,-151.0,0.00021917,2]
[342420829,1731843047894,-151.0,0.00021917,2]
[342420830,1731843047903,-1612.78,0.00021917,2]
[342420831,1731843047913,-151.0,0.00021917,2]
[342420832,1731843047923,-743.99,0.00021917,2]
[342420833,1731843047933,-500.0,0.00021917,2]
[342420834,1731843047943,-500.0,0.00021917,2]
[342420835,1731843047952,-802.65,0.00021917,2]
[342420836,1731843047963,-500.0,0.00021917,2]
[342420837,1731843047972,-500.0,0.00021917,2]
[342420838,1731843047982,-737.74,0.00021917,2]
[342420839,1731843047991,-593.38,0.00021917,2]
[342420840,1731843048000,-1138.52,0.00021917,2]
[342420841,1731843048009,-1347.77,0.00021917,2]
[342420842,1731843048019,-798.89,0.00021917,2]
[342420843,1731843048028,-500.0,0.00021917,2]
[342420844,1731843048037,-500.0,0.00021917,2]
[342420845,1731843048046,-1901.58,0.00021917,2]
[342420846,1731843048055,-500.0,0.00021917,2]
[342420847,1731843048064,-500.0,0.00021917,2]
[342420848,1731843048074,-539.1193704,0.00021917,2]
[342420849,1731843048083,-729.49,0.00021917,2]
[342420850,1731843048092,-151.0,0.00021917,2]
[342420851,1731843048101,-1162.54,0.00021917,2]
[342420852,1731843048110,-500.0,0.00021917,2]
[342420853,1731843048119,-151.0,0.00021917,2]
[342420854,1731843048128,-151.0,0.00021917,2]
[342420855,1731843048139,-260.737792,0.00021917,2]
[342420856,1731843048148,-500.0,0.00021917,2]
[342420857,1731843048157,-719.86,0.00021917,2]
[342420858,1731843048166,-2029.27812813,0.00021917,2]
[342420859,1731843072921,166.174,0.0002588,60]
[342420909,1731844170143,-315.83361947,0.00013973,2]
[342420986,1731844232595,-84.16638053,0.00013973,2]
[342420988,1731844232605,-400.0,0.00020447,2]
[342420990,1731844232615,-164.17266,0.00020589,2]
[342420993,1731844232624,-157.636449,0.00020877,2]
[342420995,1731844232634,-193.23252617,0.00021646,2]
[342421014,1731844240227,-1761.848125,0.00021646,2]
[342421015,1731844240239,-463.52713634,0.00021646,2]
[342421016,1731844240248,-509.69685159,0.00021817,2]
[342421017,1731844240258,-505.63056799,0.00021817,2]
[342421018,1731844240267,-245.10520584,0.00021899,2]
[342421019,1731844240277,-174.05882701,0.000219,2]
[342421020,1731844240286,-2634.73141123,0.000219,2]
[342421026,1731844243337,-464.41455872,0.000219,2]
[342421058,1731844246400,-89234.91891274,0.000219,2]
[342421061,1731844412123,541.57,0.00026137,120]
[342421063,1731844432747,1272.0,0.00026,60]
[342421065,1731844467101,758.0,0.00026,60]
[342421079,1731845373163,-294.0,0.00013973,2]
[342421176,1731845434678,-106.0,0.00013973,2]
[342421177,1731845434692,-400.0,0.00020447,2]
[342421178,1731845434702,-161.443946,0.0002058,2]
[342421179,1731845434711,-157.63645,0.00020847,2]
[342421180,1731845434721,-202.0,0.00021736,2]
[342421181,1731845434730,-442.426747,0.000218,2]
[342421182,1731845434741,-3000.0,0.00021817,2]
[342421183,1731845434750,-1000.0,0.00021817,2]
[342421184,1731845434760,-300.0,0.00021889,2]
[342421185,1731845434770,-797.65,0.0002189,3]
[342421186,1731845434779,-295.14,0.00021899,4]
[342421187,1731845434789,-174.05882701,0.000219,2]
[342421188,1731845434799,-149726.28479758,0.000219,2]
[342421189,1731845434809,-8165.60296235,0.000219,2]
[342421190,1731845434818,-150.112233,0.000219,3]
[342421191,1731845434828,-150.112235,0.000219,4]
[342421192,1731845434838,-151.0,0.00021917,2]
[342421193,1731845434847,-151.0,0.00021917,2]
[342421194,1731845434857,-202.35855519,0.00021917,2]
[342421195,1731845434866,-151.0,0.00021917,2]
[342421196,1731845434875,-151.0,0.00021917,2]
[342421197,1731845434885,-152.054507,0.00021917,2]
[342421198,1731845434894,-151.0,0.00021917,2]
[342421199,1731845434903,-151.0,0.00021917,2]
[342421200,1731845434913,-151.0,0.00021917,2]
[342421201,1731845434922,-151.0,0.00021917,2]
[342421202,1731845434932,-151.0,0.00021917,2]
[342421203,1731845434947,-276.469112,0.00021917,2]
[342421204,1731845434956,-500.0,0.00021917,2]
[342421205,1731845434965,-151.0,0.00021917,2]
[342421206,1731845434974,-153.753065,0.00021917,2]
[342421207,1731845434984,-500.0,0.00021917,2]
[342421208,1731845434993,-500.0,0.00021917,2]
[342421209,1731845435003,-500.0,0.00021917,2]
[342421210,1731845435012,-455.01368085,0.00021917,2]
[342421211,1731845435021,-151.0,0.00021917,2]
[342421212,1731845435030,-299.310374,0.00021917,2]
[342421213,1731845435040,-500.0,0.00021917,2]
[342421214,1731845435049,-500.0,0.00021917,2]
[342421215,1731845435058,-537.24666143,0.00021917,2]
[342421216,1731845435068,-322.4047862,0.00021917,2]
[342421217,1731845435078,-500.0,0.00021917,2]
[342421218,1731845435087,-1114.1,0.00021917,2]
[342421219,1731845435097,-500.0,0.00021917,2]
[342421220,1731845435106,-500.0,0.00021917,2]
[342421221,1731845435115,-548.73419171,0.00021917,2]
[342421222,1731845435125,-500.0,0.00021917,2]
[342421223,1731845435351,-500.0,0.00021917,2]
[342421224,1731845435363,-500.0,0.00021917,2]
[342421225,1731845435373,-500.0,0.00021917,2]
[342421226,1731845435383,-611.36,0.00021917,2]
[342421227,1731845435392,-500.0,0.00021917,2]
[342421228,1731845435403,-500.0,0.00021917,2]
[342421229,1731845435412,-500.0,0.00021917,2]
[342421230,1731845435422,-151.0,0.00021917,2]
[342421231,1731845435432,-151.0,0.00021917,2]
[342421232,1731845435443,-500.0,0.00021917,2]
[342421233,1731845435452,-151.0,0.00021917,2]
[342421234,1731845435462,-152.806068,0.00021917,2]
[342421235,1731845435471,-500.0,0.00021917,2]
[342421236,1731845435481,-501.15503729,0.00021917,2]
[342421237,1731845435490,-500.0,0.00021917,2]
[342421238,1731845435500,-263.90172466,0.00021917,2]
[342421239,1731845435509,-500.0,0.00021917,2]
[342421240,1731845435519,-501.13270362,0.00021917,2]
[342421241,1731845435529,-503.15,0.00021917,2]
[342421242,1731845435538,-500.0,0.00021917,2]
[342421243,1731845435547,-500.0,0.00021917,2]
[342421244,1731845435557,-502.48302591,0.00021917,2]
[342421245,1731845435567,-827.74,0.00021917,2]
[342421246,1731845435576,-500.0,0.00021917,2]
[342421247,1731845435586,-170.844898,0.00021917,2]
[342421248,1731845435596,-170.844898,0.00021917,2]
[342421249,1731845435608,-170.844898,0.00021917,2]
[342421250,1731845435618,-170.844898,0.00021917,2]
[342421251,1731845435627,-170.844898,0.00021917,2]
[342421252,1731845435636,-170.844898,0.00021917,2]
[342421253,1731845435646,-170.844898,0.00021917,2]
[342421254,1731845435656,-170.844898,0.00021917,2]
[342421255,1731845435665,-170.844898,0.00021917,2]
[342421256,1731845435675,-170.844898,0.00021917,2]
[342421257,1731845435685,-170.844898,0.00021917,2]
[342421258,1731845435694,-170.844898,0.00021917,2]
[342421259,1731845435703,-170.844898,0.00021917,2]
[342421260,1731845435712,-971.09,0.00021917,2]
[342421261,1731845435722,-170.844898,0.00021917,2]
[342421262,1731845435733,-170.844898,0.00021917,2]
[342421263,1731845435742,-170.844898,0.00021917,2]
[342421264,1731845435751,-170.844898,0.00021917,2]
[342421265,1731845435761,-170.844898,0.00021917,2]
[342421266,1731845435770,-500.0,0.00021917,2]
[342421267,1731845435780,-170.844898,0.00021917,2]
[342421268,1731845435790,-500.0,0.00021917,2]
[342421269,1731845435800,-170.8449,0.00021917,2]
[342421270,1731845435809,-500.0,0.00021917,2]
[342421271,1731845435819,-707.72,0.00021917,2]
[342421272,1731845435828,-500.0,0.00021917,2]
[342421273,1731845435838,-500.0,0.00021917,2]
[342421274,1731845435848,-500.0,0.00021917,2]
[342421275,1731845435857,-500.0,0.00021917,2]
[342421276,1731845435866,-159.45108792,0.00021917,2]
[342421277,1731845435875,-500.0,0.00021917,2]
[342421278,1731845435885,-500.0,0.00021917,2]
[342421279,1731845435896,-500.0,0.00021917,2]
[342421280,1731845435905,-500.0,0.00021917,2]
[342421281,1731845435915,-500.0,0.00021917,2]
[342421282,1731845435924,-500.0,0.00021917,2]
[342421283,1731845435935,-687.65,0.00021917,2]
[342421284,1731845435945,-830.94,0.00021917,2]
[342421285,1731845435954,-500.0,0.00021917,2]
[342421286,1731845435963,-552.05,0.00021917,2]
[342421287,1731845435972,-544.48,0.00021917,2]
[342421288,1731845435981,-500.0,0.00021917,2]
[342421289,1731845435991,-500.0,0.00021917,2]
[342421290,1731845436000,-500.0,0.00021917,2]
[342421291,1731845436009,-500.0,0.00021917,2]
[342421292,1731845436018,-510.13676594,0.00021917,2]
[342421293,1731845436027,-500.0,0.00021917,2]
[342421294,1731845436037,-500.0,0.00021917,2]
[342421295,1731845436046,-371.75706372,0.00021917,2]
[342421296,1731845436055,-500.0,0.00021917,2]
[342421297,1731845436064,-500.0,0.00021917,2]
[342421298,1731845436073,-500.0,0.00021917,2]
[342421299,1731845436082,-500.0,0.00021917,2]
[342421300,1731845436091,-1000.0,0.00021917,2]
[342421301,1731845436100,-503.86030318,0.00021917,2]
[342421302,1731845436110,-500.0,0.00021917,2]
[342421303,1731845436119,-634.29215624,0.00021917,2]
[342421304,1731845436129,-500.0,0.00021917,2]
[342421305,1731845436138,-500.0,0.00021917,2]